fUSD/lending_fUSD_20240718
["ID","MTS","AMOUNT","RATE_DAILY","PERIOD"]
[332541158,1721290243516,-371.29329548,0.00021278,2]
[332541159,1721290243527,-9047.0,0.00021279,2]
[332541160,1721290243538,-155.0,0.00021478,2]
[332541161,1721290243548,-188.43960679,0.00021478,2]
[332541162,1721290243557,-1068.14019756,0.00021479,2]
[332541163,1721290243567,-178.462414,0.00021508,2]
[332541164,1721290243577,-155.17,0.00021644,2]
[332541165,1721290243587,-11615.0,0.00021698,2]
[332541166,1721290243598,-7500.0,0.0002177,2]
[332541167,1721290243607,-5000.0,0.00021817,2]
[332541168,1721290243618,-215.37930068,0.00021817,2]
[332541169,1721290243628,-180.0,0.00021829,2]
[332541170,1721290243637,-11474.6506749,0.0002186,4]
[332541171,1721290243647,-500.0,0.00021869,2]
[332541172,1721290243656,-36785.75448918,0.0002187,4]
[332541175,1721290245896,-500.0,0.0002186,2]
[332541176,1721290245907,-135.84286283,0.0002187,4]
[332541177,1721290246002,-432.00902886,0.0002187,4]
[332541178,1721290246014,-557.8322401,0.0002187,4]
[332541179,1721290246027,-526.09491492,0.0002187,4]
[332541180,1721290246057,-879.9737992,0.0002187,4]
[332541181,1721290246070,-8786.32937079,0.0002187,4]
[332541182,1721290246082,-3350.55096394,0.0002187,4]
[332541183,1721290357673,15145.0,0.00024,120]
[332541186,1721291088543,550.0,0.00013,2]
[332541187,1721291108732,24430.77659013,0.00014,2]
[332541188,1721291108763,3245424.84309343,0.00014,2]
[332541190,1721291139343,3687.50698205,0.00013,2]
[332541191,1721291162618,135900.24706446,0.00013,2]
[332541192,1721291172451,364.98775744,0.00013,2]
[332541196,1721291261981,5137.23055416,0.00013999,2]
[332541202,1721291431940,-300.7497307,0.00014689,2]
[332541203,1721291431950,-451.60058686,0.00014788,2]
[332541204,1721291432000,-766.70047964,0.00014788,2]
[332541205,1721291432012,-54.84724095,0.00014788,2]
[332541206,1721291432023,-2046.46561678,0.00014789,2]
[332541207,1721291432065,-732.10144154,0.00014789,2]
[332541208,1721291432125,-760.65154168,0.00014789,2]
[332541209,1721291432135,-495.30127468,0.00014794,2]
[332541210,1721291432145,-155.0,0.00014877,2]
[332541211,1721291432155,-11253.65473189,0.00014878,2]
[332541212,1721291432164,-50000.0,0.00014888,2]
[332541213,1721291432174,-616.91,0.00014889,2]
[332541214,1721291432183,-300.300005,0.00014997,2]
[332541215,1721291432193,-8422.08,0.00015,2]
[332541216,1721291432203,-3973.24754201,0.00015,2]
[332541217,1721291432212,-5000.0,0.00016,2]
[332541218,1721291432222,-1801.29,0.00016393,2]
[332541219,1721291432231,-150.99,0.00016393,2]
[332541220,1721291432241,-499.99,0.00016393,2]
[332541221,1721291432251,-13944.96425477,0.000167,2]
[332541222,1721291432260,-10663.92646917,0.00017259,2]
[332541223,1721291432270,-186.13,0.00018211,2]
[332541224,1721291432279,-3272.80559963,0.00018769,2]
[332541225,1721291432289,-33100.12259932,0.0001878,2]
[332541226,1721291432298,-2140.95,0.00018867,2]
[332541227,1721291432309,-267.64852267,0.00019091,2]
[332541228,1721291432319,-500.0,0.00019296,2]
[332541229,1721291432329,-160.0,0.00019494,2]
[332541230,1721291432338,-1568.72,0.00019618,2]
[332541231,1721291432348,-8227.62,0.00019628,2]
[332541232,1721291432357,-250.0,0.00019647,2]
[332541233,1721291432367,-20000.0,0.00019648,2]
[332541234,1721291432377,-2804.0,0.00019787,2]
[332541235,1721291432386,-156.14,0.00019801,2]
[332541236,1721291432396,-150.0,0.00019804,2]
[332541237,1721291432405,-800.0,0.00019813,2]
[332541238,1721291432415,-200.0,0.00019845,2]
[332541239,1721291432424,-169.48,0.00019845,2]
[332541240,1721291432434,-250.0,0.00019847,2]
[332541241,1721291432443,-1003.91,0.0001988,2]
[332541242,1721291432453,-2751.0,0.00019916,2]
[332541243,1721291432463,-616.31,0.00019916,2]
[332541244,1721291432473,-12923.2,0.00019916,2]
[332541245,1721291432482,-234.97746443,0.0002,2]
[332541246,1721291432492,-327.6481753,0.0002,2]
[332541247,1721291432502,-624.0,0.0002,2]
[332541248,1721291432511,-188.43960679,0.0002,2]
[332541249,1721291432521,-500.0,0.0002,2]
[332541250,1721291432530,-500.0,0.0002,2]
[332541251,1721291432540,-1789.479999,0.0002,2]
[332541252,1721291432549,-500.0,0.00020106,2]
[332541253,1721291432561,-241.28,0.00020128,2]
[332541254,1721291432571,-250.0,0.00020129,2]
[332541255,1721291432580,-200.0,0.00020129,2]
[332541256,1721291432590,-497.29,0.00020129,2]
[332541257,1721291432600,-2021.38780005,0.000202,2]
[332541258,1721291432610,-186.13,0.00020475,2]
[332541259,1721291432620,-1331.763,0.00020618,2]
[332541260,1721291432629,-292.872,0.00020618,2]
[332541261,1721291432639,-291.172,0.00020618,2]
[332541262,1721291432649,-252.9,0.00020618,2]
[332541263,1721291432658,-1466.212,0.00020618,2]
[332541264,1721291432668,-631.83,0.00020618,2]
[332541265,1721291432677,-156.14,0.00020791,2]
[332541266,1721291432686,-178.462415,0.00020984,2]
[332541267,1721291432696,-282.85825,0.00020984,2]
[332541268,1721291432706,-180.746967,0.00020984,2]
[332541269,1721291432715,-167.0,0.00021028,2]
[332541270,1721291432726,-300.0,0.00021476,2]
[332541271,1721291432738,-178.462415,0.00021508,2]
[332541273,1721291432748,-196.78351634,0.00021639,2]
[332541275,1721291432757,-500.0,0.0002164,2]
[332541277,1721291432768,-153.32,0.00021644,2]
[332541279,1721291432777,-167.26,0.00021644,2]
[332541281,1721291432787,-500.0,0.00021649,2]
[332541283,1721291432797,-1516.60056,0.0002165,2]
[332541284,1721291432810,-500.0,0.00021658,2]
[332541285,1721291432820,-500.0,0.00021666,2]
[332541286,1721291432829,-500.0,0.00021675,2]
[332541287,1721291432840,-500.0,0.00021684,2]
[332541288,1721291432850,-500.0,0.00021693,2]
[332541289,1721291432859,-11615.0,0.00021698,2]
[332541290,1721291432869,-500.0,0.00021702,2]
[332541291,1721291432878,-500.0,0.0002171,2]
[332541292,1721291432888,-11975.5703,0.00021717,2]
[332541293,1721291432897,-500.0,0.00021719,2]
[332541294,1721291432908,-500.0,0.00021728,2]
[332541295,1721291432917,-500.0,0.00021737,2]
[332541296,1721291432927,-500.0,0.00021746,2]
[332541297,1721291432937,-155.0,0.00021753,2]
[332541298,1721291432947,-500.0,0.00021754,2]
[332541299,1721291432956,-500.0,0.00021763,2]
[332541300,1721291432966,-500.0,0.00021772,2]
[332541301,1721291432976,-154.68,0.00021777,2]
[332541302,1721291432985,-159.77802033,0.0002178,2]
[332541303,1721291432995,-500.0,0.00021781,2]
[332541304,1721291433004,-156.14,0.00021781,2]
[332541305,1721291433013,-155.0,0.00021786,2]
[332541306,1721291433023,-9047.0,0.00021787,2]
[332541307,1721291433033,-522.07482015,0.00021789,2]
[332541308,1721291433043,-500.0,0.0002179,2]
[332541309,1721291433056,-1395.89538223,0.00021797,2]
[332541310,1721291433066,-500.0,0.00021798,2]
[332541311,1721291433075,-300.0,0.00021805,2]
[332541312,1721291433085,-419.40981592,0.00021805,2]
[332541313,1721291433094,-1166.3509,0.00021806,2]
[332541314,1721291433104,-500.0,0.00021807,2]
[332541315,1721291433114,-7500.0,0.00021816,2]
[332541316,1721291433123,-500.0,0.00021816,2]
[332541317,1721291433133,-5000.0,0.00021817,2]
[332541318,1721291433142,-816.2897,0.00021817,2]
[332541319,1721291433151,-17073.8047,0.00021817,2]
[332541320,1721291433160,-299.99361948,0.00021817,2]
[332541321,1721291433170,-181.4307852,0.00021817,2]
[332541322,1721291433179,-360.02562636,0.00021817,2]
[332541323,1721291433189,-500.0,0.00021825,2]
[332541324,1721291433199,-500.0,0.00021834,2]
[332541325,1721291433208,-500.0,0.00021842,2]
[332541326,1721291433218,-500.0,0.00021851,2]
[332541327,1721291433228,-1099.54706009,0.00021869,2]
[332541328,1721291433238,-38977.62058084,0.0002187,4]
[332541329,1721291433248,-500.0,0.00021878,2]
[332541330,1721291433258,-500.0,0.00021886,2]
[332541331,1721291433268,-500.0,0.00021895,2]
[332541332,1721291433278,-500.0,0.00021904,2]
[332541333,1721291433287,-39842.5370651,0.00021906,4]
[332541334,1721291433298,-154.68,0.00021906,2]
[332541335,1721291433309,-182.70914437,0.00021906,2]
[332541336,1721291433319,-500.0,0.00021913,2]
[332541337,1721291433328,-52902.7746811,0.00021916,2]
[332541338,1721291433825,-7767.54302045,0.00021916,2]
[332541339,1721291433838,-252157.58946903,0.00021916,2]
[332541340,1721291433847,-165.31490978,0.00021917,2]
[332541341,1721291433857,-500.0,0.00021917,2]
[332541342,1721291433868,-500.0,0.00021917,2]
[332541343,1721291433877,-500.0,0.00021917,2]
[332541344,1721291433887,-587.88946761,0.00021917,2]
[332541345,1721291433896,-500.0,0.00021917,2]
[332541346,1721291433905,-500.0,0.00021917,2]
[332541347,1721291433915,-500.0,0.00021917,2]
[332541348,1721291433924,-500.0,0.00021917,2]
[332541349,1721291433934,-500.0,0.00021917,2]
[332541350,1721291433943,-500.0,0.00021917,2]
[332541351,1721291433953,-500.0,0.00021917,2]
[332541352,1721291433963,-500.0,0.00021917,2]
[332541353,1721291433972,-500.0,0.00021917,2]
[332541354,1721291433982,-500.0,0.00021917,2]
[332541355,1721291433991,-500.0,0.00021917,2]
[332541356,1721291434001,-500.0,0.00021917,2]
[332541357,1721291434010,-500.0,0.00021917,2]
[332541358,1721291434020,-306.47524567,0.00021917,2]
[332541359,1721291434029,-500.0,0.00021917,2]
[332541360,1721291434038,-500.0,0.00021917,2]
[332541361,1721291434048,-500.0,0.00021917,2]
[332541362,1721291434057,-500.0,0.00021917,2]
[332541363,1721291434067,-500.0,0.00021917,2]
[332541364,1721291434076,-500.0,0.00021917,2]
[332541365,1721291434086,-500.0,0.00021917,2]
[332541366,1721291434096,-500.0,0.00021917,2]
[332541367,1721291434105,-500.0,0.00021917,2]
[332541368,1721291434114,-500.0,0.00021917,2]
[332541369,1721291434124,-500.0,0.00021917,2]
[332541370,1721291434133,-500.0,0.00021917,2]
[332541371,1721291434143,-500.0,0.00021917,2]
[332541372,1721291434152,-500.0,0.00021917,2]
[332541373,1721291434161,-500.0,0.00021917,2]
[332541374,1721291434170,-500.0,0.00021917,2]
[332541375,1721291434180,-500.0,0.00021917,2]
[332541376,1721291434190,-500.0,0.00021917,2]
[332541377,1721291434199,-500.0,0.00021917,2]
[332541378,1721291434208,-500.0,0.00021917,2]
[332541379,1721291434218,-500.0,0.00021917,2]
[332541380,1721291434227,-572.72225998,0.00021917,2]
[332541381,1721291434236,-500.0,0.00021917,2]
[332541382,1721291434246,-500.0,0.00021917,2]
[332541383,1721291434256,-500.0,0.00021917,2]
[332541384,1721291434265,-500.0,0.00021917,2]
[332541385,1721291434275,-500.0,0.00021917,2]
[332541386,1721291434284,-500.0,0.00021917,2]
[332541387,1721291434293,-500.0,0.00021917,2]
[332541388,1721291434303,-500.0,0.00021917,2]
[332541389,1721291434313,-515.21205565,0.00021917,2]
[332541390,1721291434322,-500.0,0.00021917,2]
[332541391,1721291434331,-500.0,0.00021917,2]
[332541392,1721291434341,-500.0,0.00021917,2]
[332541393,1721291434350,-500.0,0.00021917,2]
[332541394,1721291434360,-500.0,0.00021917,2]
[332541395,1721291434369,-500.0,0.00021917,2]
[332541396,1721291434378,-500.0,0.00021917,2]
[332541397,1721291434388,-500.0,0.00021917,2]
[332541398,1721291434398,-500.0,0.00021917,2]
[332541399,1721291434408,-500.0,0.00021917,2]
[332541400,1721291434418,-500.0,0.00021917,2]
[332541401,1721291434428,-500.0,0.00021917,2]
[332541402,1721291434437,-500.0,0.00021917,2]
[332541403,1721291434447,-500.0,0.00021917,2]
[332541404,1721291434456,-500.0,0.00021917,2]
[332541405,1721291434467,-500.0,0.00021917,2]
[332541406,1721291434477,-500.0,0.00021917,2]
[332541407,1721291434486,-500.0,0.00021917,2]
[332541408,1721291434495,-500.0,0.00021917,2]
[332541409,1721291434504,-500.0,0.00021917,2]
[332541410,1721291434514,-447.00050554,0.00021917,2]
[332541411,1721291434523,-500.0,0.00021917,2]
[332541412,1721291434532,-500.0,0.00021917,2]
[332541413,1721291434542,-500.0,0.00021917,2]
[332541414,1721291434551,-500.0,0.00021917,2]
[332541415,1721291434561,-500.0,0.00021917,2]
[332541416,1721291434571,-500.0,0.00021917,2]
[332541417,1721291434580,-204.80021393,0.00021917,2]
[332541418,1721291434589,-500.0,0.00021917,2]
[332541419,1721291434598,-500.0,0.00021917,2]
[332541420,1721291434608,-500.0,0.00021917,2]
[332541421,1721291434617,-500.0,0.00021917,2]
[332541422,1721291434626,-500.0,0.00021917,2]
[332541423,1721291434636,-500.0,0.00021917,2]
[332541424,1721291434646,-500.0,0.00021917,2]
[332541425,1721291434656,-500.0,0.00021917,2]
[332541426,1721291434665,-500.0,0.00021917,2]
[332541427,1721291434675,-500.0,0.00021917,2]
[332541428,1721291434685,-500.0,0.00021917,2]
[332541429,1721291434695,-500.0,0.00021917,2]
[332541430,1721291434704,-500.0,0.00021917,2]
[332541431,1721291434714,-500.0,0.00021917,2]
[332541432,1721291434724,-500.0,0.00021917,2]
[332541433,1721291434734,-500.0,0.00021917,2]
[332541434,1721291434747,-500.0,0.00021917,2]
[332541435,1721291434757,-500.0,0.00021917,2]
[332541436,1721291434767,-500.0,0.00021917,2]
[332541437,1721291434776,-500.0,0.00021917,2]
[332541438,1721291434786,-500.0,0.00021917,2]
[332541439,1721291434796,-500.0,0.00021917,2]
[332541440,1721291434806,-500.0,0.00021917,2]
[332541441,1721291434816,-500.0,0.00021917,2]
[332541442,1721291434825,-500.0,0.00021917,2]
[332541443,1721291434836,-500.0,0.00021917,2]
[332541444,1721291434845,-500.0,0.00021917,2]
[332541445,1721291434856,-500.0,0.00021917,2]
[332541446,1721291434865,-500.0,0.00021917,2]
[332541447,1721291434875,-500.0,0.00021917,2]
[332541448,1721291434885,-500.0,0.00021917,2]
[332541449,1721291434894,-500.0,0.00021917,2]
[332541450,1721291434904,-500.0,0.00021917,2]
[332541451,1721291434914,-500.0,0.00021917,2]
[332541452,1721291434924,-500.0,0.00021917,2]
[332541453,1721291434934,-500.0,0.00021917,2]
[332541454,1721291434945,-500.0,0.00021917,2]
[332541455,1721291434955,-500.0,0.00021917,2]
[332541456,1721291434964,-500.0,0.00021917,2]
[332541457,1721291434973,-500.0,0.00021917,2]
[332541458,1721291434983,-500.0,0.00021917,2]
[332541459,1721291434993,-500.0,0.00021917,2]
[332541460,1721291435003,-500.0,0.00021917,2]
[332541461,1721291435012,-500.0,0.00021917,2]
[332541462,1721291435022,-500.0,0.00021917,2]
[332541463,1721291435031,-500.0,0.00021917,2]
[332541464,1721291435041,-500.0,0.00021917,2]
[332541465,1721291435050,-500.0,0.00021917,2]
[332541466,1721291435061,-500.0,0.00021917,2]
[332541467,1721291435070,-500.0,0.00021917,2]
[332541468,1721291435079,-500.0,0.00021917,2]
[332541469,1721291435088,-500.0,0.00021917,2]
[332541470,1721291435098,-500.0,0.00021917,2]
[332541471,1721291435107,-500.0,0.00021917,2]
[332541472,1721291435116,-500.0,0.00021917,2]
[332541473,1721291435125,-500.0,0.00021917,2]
[332541474,1721291435135,-500.0,0.00021917,2]
[332541475,1721291435144,-500.0,0.00021917,2]
[332541476,1721291435153,-500.0,0.00021917,2]
[332541477,1721291435162,-500.0,0.00021917,2]
[332541478,1721291435172,-500.0,0.00021917,2]
[332541479,1721291435181,-500.0,0.00021917,2]
[332541480,1721291435190,-500.0,0.00021917,2]
[332541481,1721291435199,-500.0,0.00021917,2]
[332541482,1721291435209,-500.0,0.00021917,2]
[332541483,1721291435218,-500.0,0.00021917,2]
[332541484,1721291435228,-500.0,0.00021917,2]
[332541485,1721291435238,-500.0,0.00021917,2]
[332541486,1721291435247,-500.0,0.00021917,2]
[332541487,1721291435256,-500.0,0.00021917,2]
[332541488,1721291435265,-500.0,0.00021917,2]
[332541489,1721291435275,-500.0,0.00021917,2]
[332541490,1721291435284,-500.0,0.00021917,2]
[332541491,1721291435294,-500.0,0.00021917,2]
[332541492,1721291435304,-531.62,0.00021917,2]
[332541493,1721291435313,-500.0,0.00021917,2]
[332541494,1721291435322,-500.0,0.00021917,2]
[332541495,1721291435331,-500.0,0.00021917,2]
[332541496,1721291435340,-500.0,0.00021917,2]
[332541497,1721291435349,-500.0,0.00021917,2]
[332541498,1721291435358,-500.0,0.00021917,2]
[332541499,1721291435367,-500.0,0.00021917,2]
[332541500,1721291435377,-500.0,0.00021917,2]
[332541501,1721291435386,-500.0,0.00021917,2]
[332541502,1721291435396,-500.0,0.00021917,2]
[332541503,1721291435405,-500.0,0.00021917,2]
[332541504,1721291435415,-500.0,0.00021917,2]
[332541505,1721291435424,-500.0,0.00021917,2]
[332541506,1721291435433,-500.0,0.00021917,2]
[332541507,1721291435442,-500.0,0.00021917,2]
[332541508,1721291435452,-500.0,0.00021917,2]
[332541509,1721291435461,-500.0,0.00021917,2]
[332541510,1721291435471,-500.0,0.00021917,2]
[332541511,1721291435480,-500.0,0.00021917,2]
[332541512,1721291435489,-500.0,0.00021917,2]
[332541513,1721291435498,-500.0,0.00021917,2]
[332541514,1721291435507,-500.0,0.00021917,2]
[332541515,1721291435516,-500.0,0.00021917,2]
[332541516,1721291435526,-500.0,0.00021917,2]
[332541517,1721291435535,-500.0,0.00021917,2]
[332541518,1721291435544,-500.0,0.00021917,2]
[332541519,1721291435557,-500.0,0.00021917,2]
[332541520,1721291435566,-500.0,0.00021917,2]
[332541521,1721291435575,-500.0,0.00021917,2]
[332541522,1721291435584,-500.0,0.00021917,2]
[332541523,1721291435594,-500.0,0.00021917,2]
[332541524,1721291435603,-500.0,0.00021917,2]
[332541525,1721291435613,-500.0,0.00021917,2]
[332541526,1721291435622,-500.0,0.00021917,2]
[332541527,1721291435631,-500.0,0.00021917,2]
[332541528,1721291435641,-500.0,0.00021917,2]
[332541529,1721291435650,-500.0,0.00021917,2]
[332541530,1721291435661,-500.0,0.00021917,2]
[332541531,1721291435671,-500.0,0.00021917,2]
[332541532,1721291435680,-500.0,0.00021917,2]
[332541533,1721291435689,-500.0,0.00021917,2]
[332541534,1721291435698,-500.0,0.00021917,2]
[332541535,1721291435707,-354.4,0.00021917,2]
[332541536,1721291435716,-500.0,0.00021917,2]
[332541537,1721291435727,-500.0,0.00021917,2]
[332541538,1721291435738,-500.0,0.00021917,2]
[332541539,1721291435747,-500.0,0.00021917,2]
[332541540,1721291435757,-500.0,0.00021917,2]
[332541541,1721291435766,-500.0,0.00021917,2]
[332541542,1721291435776,-500.0,0.00021917,2]
[332541543,1721291435785,-500.0,0.00021917,2]
[332541544,1721291435794,-500.0,0.00021917,2]
[332541545,1721291435807,-500.0,0.00021917,2]
[332541546,1721291435816,-500.0,0.00021917,2]
[332541547,1721291435826,-500.0,0.00021917,2]
[332541548,1721291435835,-500.0,0.00021917,2]
[332541549,1721291435847,-500.0,0.00021917,2]
[332541550,1721291435856,-500.0,0.00021917,2]
[332541551,1721291435865,-500.0,0.00021917,2]
[332541552,1721291435875,-500.0,0.00021917,2]
[332541553,1721291435884,-500.0,0.00021917,2]
[332541554,1721291435893,-500.0,0.00021917,2]
[332541555,1721291435903,-500.0,0.00021917,2]
[332541556,1721291435912,-500.0,0.00021917,2]
[332541557,1721291435921,-393.54,0.00021917,2]
[332541558,1721291435930,-500.0,0.00021917,2]
[332541559,1721291435939,-500.0,0.00021917,2]
[332541560,1721291435951,-500.0,0.00021917,2]
[332541561,1721291435960,-607.28,0.00021917,2]
[332541562,1721291435969,-500.0,0.00021917,2]
[332541563,1721291435979,-500.0,0.00021917,2]
[332541564,1721291435989,-500.0,0.00021917,2]
[332541565,1721291435998,-500.0,0.00021917,2]
[332541566,1721291436007,-500.0,0.00021917,2]
[332541567,1721291436017,-500.0,0.00021917,2]
[332541568,1721291436026,-500.0,0.00021917,2]
[332541569,1721291436036,-500.0,0.00021917,2]
[332541570,1721291436046,-500.0,0.00021917,2]
[332541571,1721291436059,-500.0,0.00021917,2]
[332541572,1721291436068,-500.0,0.00021917,2]
[332541573,1721291436078,-500.0,0.00021917,2]
[332541574,1721291436087,-500.0,0.00021917,2]
[332541575,1721291436096,-500.0,0.00021917,2]
[332541576,1721291436106,-500.0,0.00021917,2]
[332541577,1721291436116,-500.0,0.00021917,2]
[332541578,1721291436125,-500.0,0.00021917,2]
[332541579,1721291436134,-500.0,0.00021917,2]
[332541580,1721291436144,-500.0,0.00021917,2]
[332541581,1721291436153,-227.16,0.00021917,2]
[332541582,1721291436163,-500.0,0.00021917,2]
[332541583,1721291436172,-500.0,0.00021917,2]
[332541584,1721291436181,-500.0,0.00021917,2]
[332541585,1721291436190,-500.0,0.00021917,2]
[332541586,1721291436199,-500.0,0.00021917,2]
[332541587,1721291436208,-500.0,0.00021917,2]
[332541588,1721291436217,-426.70048434,0.00021917,2]
[332541589,1721291436226,-500.0,0.00021917,2]
[332541590,1721291436235,-500.0,0.00021917,2]
[332541591,1721291436246,-500.0,0.00021917,2]
[332541592,1721291436255,-500.0,0.00021917,2]
[332541593,1721291436264,-500.0,0.00021917,2]
[332541594,1721291436274,-597.48,0.00021917,2]
[332541595,1721291436283,-500.0,0.00021917,2]
[332541596,1721291436292,-500.0,0.00021917,2]
[332541597,1721291436301,-500.0,0.00021917,2]
[332541598,1721291436311,-550.4432963,0.00021917,2]
[332541599,1721291436320,-500.0,0.00021917,2]
[332541600,1721291436330,-500.0,0.00021917,2]
[332541601,1721291436339,-500.0,0.00021917,2]
[332541602,1721291436349,-500.0,0.00021917,2]
[332541603,1721291436358,-500.0,0.00021917,2]
[332541604,1721291436367,-500.0,0.00021917,2]
[332541605,1721291436377,-500.0,0.00021917,2]
[332541606,1721291436386,-500.0,0.00021917,2]
[332541607,1721291436396,-500.0,0.00021917,2]
[332541608,1721291436405,-548.98,0.00021917,2]
[332541609,1721291436415,-500.0,0.00021917,2]
[332541610,1721291436424,-500.0,0.00021917,2]
[332541611,1721291436433,-500.0,0.00021917,2]
[332541612,1721291436442,-500.0,0.00021917,2]
[332541613,1721291436451,-500.0,0.00021917,2]
[332541614,1721291436460,-500.0,0.00021917,2]
[332541615,1721291436469,-500.0,0.00021917,2]
[332541616,1721291436478,-500.0,0.00021917,2]
[332541617,1721291436487,-500.0,0.00021917,2]
[332541618,1721291436496,-500.0,0.00021917,2]
[332541619,1721291436504,-500.0,0.00021917,2]
[332541620,1721291436513,-500.0,0.00021917,2]
[332541621,1721291436522,-500.0,0.00021917,2]
[332541622,1721291436531,-500.0,0.00021917,2]
[332541623,1721291436540,-500.0,0.00021917,2]
[332541624,1721291436550,-500.0,0.00021917,2]
[332541625,1721291436561,-500.0,0.00021917,2]
[332541626,1721291436570,-500.0,0.00021917,2]
[332541627,1721291436579,-500.0,0.00021917,2]
[332541628,1721291436588,-500.0,0.00021917,2]
[332541629,1721291436597,-500.0,0.00021917,2]
[332541630,1721291436607,-500.0,0.00021917,2]
[332541631,1721291436616,-592.45926745,0.00021917,2]
[332541632,1721291436626,-500.0,0.00021917,2]
[332541633,1721291436637,-500.0,0.00021917,2]
[332541634,1721291436649,-500.0,0.00021917,2]
[332541635,1721291436662,-1347.14,0.00021917,2]
[332541636,1721291436673,-500.0,0.00021917,2]
[332541637,1721291436684,-500.0,0.00021917,2]
[332541638,1721291436695,-500.0,0.00021917,2]
[332541639,1721291436705,-500.0,0.00021917,2]
[332541640,1721291436716,-500.0,0.00021917,2]
[332541641,1721291436728,-500.0,0.00021917,2]
[332541642,1721291436741,-500.0,0.00021917,2]
[332541643,1721291436751,-500.0,0.00021917,2]
[332541644,1721291436760,-504.17266272,0.00021917,2]
[332541645,1721291436771,-500.0,0.00021917,2]
[332541646,1721291436783,-500.0,0.00021917,2]
[332541647,1721291436794,-500.0,0.00021917,2]
[332541648,1721291436804,-190.55112505,0.00021917,2]
[332541649,1721291436817,-500.0,0.00021917,2]
[332541650,1721291436828,-500.0,0.00021917,2]
[332541651,1721291436840,-500.0,0.00021917,2]
[332541652,1721291436851,-500.0,0.00021917,2]
[332541653,1721291436862,-500.0,0.00021917,2]
[332541654,1721291436873,-500.0,0.00021917,2]
[332541655,1721291436884,-500.0,0.00021917,2]
[332541656,1721291436895,-500.0,0.00021917,2]
[332541657,1721291436906,-500.0,0.00021917,2]
[332541658,1721291436917,-500.0,0.00021917,2]
[332541659,1721291436927,-500.0,0.00021917,2]
[332541660,1721291436939,-500.0,0.00021917,2]
[332541661,1721291436949,-500.0,0.00021917,2]
[332541662,1721291436959,-500.0,0.00021917,2]
[332541663,1721291436970,-500.0,0.00021917,2]
[332541664,1721291436980,-500.0,0.00021917,2]
[332541665,1721291436990,-500.0,0.00021917,2]
[332541666,1721291437000,-500.0,0.00021917,2]
[332541667,1721291437010,-500.0,0.00021917,2]
[332541668,1721291437020,-500.0,0.00021917,2]
[332541669,1721291437031,-500.0,0.00021917,2]
[332541670,1721291437042,-500.0,0.00021917,2]
[332541671,1721291437054,-500.0,0.00021917,2]
[332541672,1721291437065,-500.0,0.00021917,2]
[332541673,1721291437075,-500.0,0.00021917,2]
[332541674,1721291437086,-500.0,0.00021917,2]
[332541675,1721291437097,-500.0,0.00021917,2]
[332541676,1721291437107,-500.0,0.00021917,2]